{"text_format":"1","workbook":"xlsx","n_sheets":4,"sheets":["Order Forms","Parts for Discontinued Systems","Samsung Systems","Remove from Order Form"],"not_rendered":{"charts":0,"images":35,"macros":1,"external_links":0,"defined_names":10,"comments":0,"pivot_tables":0},"unopened":[],"bounds":{"document_bytes":16777216,"sheet_cells":100000,"rows_first":2000,"rows_last":500,"rows_between":2000,"halvings":0,"cell_chars":16384,"cell_head_chars":4096},"cells_cut":0,"cells_raw":0,"read":"whole","date_system":"1900"}

{"sheet":"Order Forms","index":0,"n_rows":24,"n_cols":21,"rows_kept":24,"cut":false,"hidden":false,"merged":[[12,0,12,3],[20,2,20,7],[24,15,24,20],[10,5,10,9],[11,5,11,9],[10,0,11,3],[21,0,21,9],[23,0,23,9],[14,0,14,3]]}
[]
[]
[]
[]
[]
[]
[]
[]
[]
[]
["GSBN & ONLINE LEASING",null,null,null,null,"E-MAIL"]
[null,null,null,null,null,"Double Click Your Selection"]
["Get Order Confirmation Immediately!"]
[null,null,null,null,null,null,null,null,null,null,null,null,"Samsung Systems"]
["Click on the Buttons",null,null,null,null,null,null,null,"\\",null,null,null,"Parts for Discontinued Systems"]
[]
[]
[]
[]
[]
[]
["*Terms and Conditions of Sale are as set forth in the Key Systems Dealer or Distributor Agreement.  Prices subject to change without prior notice.",null,null,null,null,null,null,null,null,null,null,null,null,null,null,null,null,null,null,null,"Samsung Assurance "]
[]
["Every effort has been made to eliminate errors and  ambiguities in the information contained here in.  Any questions concerning information presented here should be directed to SAMSUNG TELECOMMUNICATIONS AMERICA.  SAMSUNG TELECOMMUNICATIONS AMERICA disclaims all liabilities for damages arising from erroneous interpretation or use of information presented in this price list workbook."]

{"sheet":"Parts for Discontinued Systems","index":1,"n_rows":17,"n_cols":10,"rows_kept":17,"cut":false,"hidden":false,"merged":[[15,1,15,2],[3,3,3,5],[3,2,4,2],[10,4,10,5],[1,0,1,1],[2,3,2,5],[12,2,12,3],[9,0,9,5],[0,0,0,5],[14,1,14,2],[4,3,4,5],[6,3,6,5],[8,0,8,5],[3,0,5,0],[12,0,12,1],[1,4,1,5],[13,0,13,5],[10,2,10,3]]}
["Samsung Parts for Discontinued Systems",null,null,null,null,null,null,"BCS1003001"]
[]
["Dealer Acct.#:",null,"Dealer:"]
["Bill To:",null,"Ship To:"]
[null,null,null,null,null,null,"Cost1"]
[null,null,"Date:",null,"PO#:",null,">=1"]
["Contact:",null,"Phone:",null,null,null,0]
[]
["Payment:"]
["UPS Shipping:"]
["Ship Date:",null,"Target Installation Date:"]
[]
["Fax: (800) 227-8234",null,"DEALER DISCOUNT*:"]
["NOTE: Samsung will accept customer orders for Discontinued Parts and fulfill them, after the manufacture discontinued date, until inventory of discontinued items has been exhausted. Parts on this list with only carry a 90 day warranty from the purchase date.",null,null,null,null,null,null,null,"INPUT COUNTRY ON P16:"]
["ORDER NO.","ITEM",null,"QTY.","PRICE","Cost","Cost1",null,null,"USA"]
[null,null,null,null,null,null,{"$f":"F16","v":0},null,171,178]
[null,null,null,null,"TOTAL",{"$f":"SUM(F16)","v":0},{"$f":"G16","v":0}]

{"sheet":"Samsung Systems","index":2,"n_rows":360,"n_cols":19,"rows_kept":360,"cut":false,"hidden":false,"merged":[[297,0,297,5],[309,1,309,2],[310,1,310,2],[311,1,311,2],[286,1,286,2],[287,1,287,2],[288,1,288,2],[295,1,295,2],[312,1,312,2],[296,1,296,2],[293,1,293,2],[294,1,294,2],[290,1,290,2],[291,1,291,2],[292,1,292,2],[313,1,313,2],[314,1,314,2],[315,1,315,2],[316,1,316,2],[301,1,301,2],[302,1,302,2],[303,1,303,2],[304,1,304,2],[305,1,305,2],[306,1,306,2],[307,1,307,2],[308,1,308,2],[335,1,335,2],[336,1,336,2],[337,1,337,2],[326,1,326,2],[327,1,327,2],[328,1,328,2],[329,1,329,2],[330,1,330,2],[331,1,331,2],[332,1,332,2],[334,1,334,2],[333,1,333,2],[317,1,317,2],[318,1,318,2],[319,1,319,2],[320,1,320,2],[321,1,321,2],[322,1,322,2],[323,1,323,2],[324,1,324,2],[325,1,325,2],[281,1,281,2],[282,1,282,2],[284,1,284,2],[285,1,285,2],[280,1,280,2],[289,0,289,5],[222,1,222,2],[247,1,247,2],[248,1,248,2],[255,0,255,5],[256,0,256,5],[260,1,260,2],[254,0,254,5],[225,1,225,2],[231,1,231,2],[230,1,230,2],[229,1,229,2],[234,1,234,2],[237,1,237,2],[240,1,240,2],[258,1,258,2],[271,1,271,2],[224,1,224,2],[161,1,161,2],[164,1,164,2],[163,1,163,2],[162,1,162,2],[165,1,165,2],[151,1,151,2],[153,1,153,2],[152,1,152,2],[167,1,167,2],[41,1,41,2],[42,1,42,2],[69,1,69,2],[66,1,66,2],[67,1,67,2],[73,1,73,2],[94,1,94,2],[89,1,89,2],[90,1,90,2],[91,1,91,2],[71,0,71,5],[77,1,77,2],[88,1,88,2],[78,1,78,2],[79,1,79,2],[80,1,80,2],[81,1,81,2],[85,1,85,2],[82,1,82,2],[83,1,83,2],[84,1,84,2],[87,1,87,2],[72,1,72,2],[57,1,57,2],[146,1,146,2],[166,1,166,2],[148,1,148,2],[135,1,135,2],[176,1,176,2],[144,0,144,2],[147,1,147,2],[149,1,149,2],[137,0,137,2],[140,1,140,2],[139,1,139,2],[138,1,138,2],[168,1,168,2],[169,1,169,2],[170,1,170,2],[154,1,154,2],[155,1,155,2],[150,0,150,5],[156,1,156,2],[171,1,171,2],[157,1,157,2],[158,1,158,2],[159,1,159,2],[160,1,160,2],[129,1,129,2],[102,0,102,2],[127,0,127,2],[120,1,120,2],[117,1,117,2],[118,1,118,2],[119,1,119,2],[107,1,107,2],[142,1,142,2],[111,1,111,2],[113,1,113,2],[112,1,112,2],[132,1,132,2],[126,1,126,2],[128,1,128,2],[58,1,58,2],[95,1,95,2],[99,1,99,2],[108,1,108,2],[109,1,109,2],[110,1,110,2],[114,1,114,2],[115,1,115,2],[100,0,100,5],[104,1,104,2],[59,1,59,2],[86,1,86,2],[76,0,76,5],[75,1,75,2],[74,0,74,5],[70,0,70,5],[105,1,105,2],[106,1,106,2],[50,0,50,2],[62,1,62,2],[65,1,65,2],[51,1,51,2],[63,1,63,2],[97,0,97,2],[141,1,141,2],[133,1,133,2],[98,1,98,2],[130,1,130,2],[123,0,123,5],[125,1,125,2],[124,0,124,2],[92,0,92,2],[93,1,93,2],[121,1,121,2],[52,1,52,2],[55,1,55,2],[61,1,61,2],[64,0,64,2],[56,1,56,2],[122,1,122,2],[116,1,116,2],[131,1,131,2],[16,0,16,2],[35,1,35,2],[22,0,22,5],[23,1,23,2],[24,1,24,2],[27,1,27,2],[53,1,53,2],[60,1,60,2],[36,1,36,2],[18,1,18,2],[33,1,33,2],[20,0,20,2],[21,1,21,2],[26,1,26,2],[29,1,29,2],[32,1,32,2],[30,1,30,2],[28,1,28,2],[19,1,19,2],[31,1,31,2],[38,0,38,2],[49,1,49,2],[48,0,48,2],[54,1,54,2],[44,0,44,2],[10,4,10,5],[15,0,15,5],[37,1,37,2],[0,0,0,5],[14,1,14,2],[4,3,4,5],[6,3,6,5],[8,0,8,5],[2,3,2,5],[12,0,12,1],[3,3,3,5],[11,3,11,5],[1,4,1,5],[1,0,1,1],[3,0,5,0],[3,2,4,2],[10,2,10,3],[9,0,9,5],[12,2,12,3],[40,1,40,2],[34,1,34,2],[25,1,25,2],[17,1,17,2],[39,1,39,2],[45,1,45,2],[43,0,43,5],[46,1,46,2],[47,1,47,2],[358,1,358,2],[352,1,352,2],[101,1,101,2],[188,0,188,5],[216,0,216,5],[217,0,217,5],[103,1,103,2],[136,0,136,5],[96,0,96,5],[223,0,223,5],[206,0,206,5],[197,0,197,5],[145,1,145,2],[134,0,134,2],[143,0,143,5],[343,1,343,2],[340,1,340,2],[342,1,342,2],[339,0,339,5],[338,0,338,5],[341,1,341,2],[357,1,357,2],[300,0,300,5],[233,1,233,2],[349,1,349,2],[354,1,354,2],[344,1,344,2],[355,1,355,2],[356,1,356,2],[345,1,345,2],[346,1,346,2],[353,0,353,2],[351,1,351,2],[347,1,347,2],[348,1,348,2],[279,0,279,5],[269,0,269,5],[270,1,270,2],[259,1,259,2],[241,1,241,2],[244,1,244,2],[246,1,246,2],[283,1,283,2],[203,1,203,2],[273,1,273,2],[274,1,274,2],[275,1,275,2],[277,1,277,2],[276,1,276,2],[261,0,261,5],[262,1,262,2],[263,1,263,2],[268,1,268,2],[264,1,264,2],[266,1,266,2],[213,1,213,2],[272,1,272,2],[257,1,257,2],[267,1,267,2],[243,0,243,5],[242,0,242,5],[245,0,245,5],[249,0,249,5],[250,1,250,2],[252,0,252,5],[204,1,204,2],[205,1,205,2],[186,1,186,2],[187,1,187,2],[181,1,181,2],[189,1,189,2],[190,1,190,2],[191,1,191,2],[180,0,180,5],[202,1,202,2],[185,1,185,2],[199,1,199,2],[200,1,200,2],[201,1,201,2],[195,1,195,2],[196,1,196,2],[198,1,198,2],[208,0,208,5],[239,1,239,2],[251,1,251,2],[232,0,232,5],[235,0,235,5],[236,1,236,2],[238,0,238,5],[226,0,226,5],[228,1,228,2],[227,0,227,5],[214,1,214,2],[359,1,359,2],[215,1,215,2],[212,1,212,2],[210,1,210,2],[211,1,211,2],[172,0,172,5],[209,1,209,2],[207,1,207,2],[220,1,220,2],[221,1,221,2],[175,0,175,5],[173,0,173,5],[174,1,174,2],[192,1,192,2],[193,1,193,2],[194,1,194,2],[179,1,179,2],[177,1,177,2],[178,1,178,2],[183,1,183,2],[182,1,182,2],[184,1,184,2],[218,1,218,2],[219,1,219,2]]}
["Samsung Systems Order Form",null,null,null,null,null,null,"BCS1003001"]
[]
["Dealer Acct.#:",null,"Dealer:"]
["Bill To:",null,"Ship To:"]
[null,null,null,null,null,null,"Cost1"]
[null,null,"Date:",null,"PO#:",null,">=1"]
["Contact:",null,"Phone:",null,null,null,0]
[]
["Payment:"]
["UPS Shipping:",null,null,null,null,null,null,null,null,null,null,"OfficeServ 7400"]
["Ship Date:",null,"Target Installation Date:",null,null,null,null,0.1,null,0.12,null,"OfficeServ 7200"]
["Select System - Double Click",null,"Comments:",null,null,null,null,0.18,null,null,null,"OfficeServ 7200-S"]
[null,null,"PARTNER DISCOUNT*:",null,null,null,null,0.24,null,null,null,"OfficeServ 7100"]
[null,null,null,null,null,null,null,0.26,null,null,null,"OfficeServ 7030"]
["ORDER NO.","ITEM",null,"QTY.","PRICE","COST","Cost1",0.28000000000000003,null,null,null,"Ubigate"]
["OfficeServ 7400 Platform",null,null,null,null,null,{"$f":"SUM(G17+G21+G23+G39)","v":0},0.3,null,null,null,"Call Management Suite (CMS)",null,null,null,null,"INPUT COUNTRY ON S16:",null,"USA"]
["OS 7400 STARTER KITS",null,null,null,null,null,{"$f":"SUM(G18:G20)","v":0},null,null,null,null,"Contact Center Pro (SCC Pro)",null,null,null,null,"USA","CANADA",1.1499999999999999]
["7400KIT","OS 7400 Starter Kit\nIncludes: 1ea. - OS 7400 Universal cabinet, 1 ea - Master Processor (MP40), 1 ea - SD Card, 1 ea - Local Processor (LP40), 1 ea - Common Resource Module (CRM)",null,null,{"$f":"IF($S$16=\"USA\",Q18,R18)","v":2680},{"$f":"+(1-E$13)*D18*E18","v":0},{"$f":"F18","v":0},null,null,null,null,null,null,null,null,null,2680,{"$f":"ROUND(Q18*(S$17),0)","v":3082}]
["F-B-OS7400-IP","OS 7400 IP Starter  Kit\nIncludes:  1ea - OS 7400 Universal Cabinet, 1ea - Master Processor (MP40), 1ea - SD Card, 1ea - Local Processor (LP40),  1 ea. CRM Card, 24 ea. SIP Trunk Licenses, 2 ea. OAS Card",null,null,{"$f":"IF($S$16=\"USA\",Q19,R19)","v":4020},{"$f":"+(1-E$13)*D19*E19","v":0},{"$f":"F19","v":0},null,null,null,null,null,null,null,null,null,4020,{"$f":"ROUND(Q19*(S$17),0)","v":4623}]
["7400EKIT","OS 7400 Expansion Kit\nIncludes: 1ea - OS 7400 Universal cabinet, 1ea - Local Processor (LP40) with link cables",null,null,2010,{"$f":"+(1-E$13)*D20*E20","v":0},{"$f":"F20","v":0},null,null,null,null,null,null,null,null,null,2010,2312]
["OS 7400 SOFTWARE",null,null,null,null,null,{"$f":"SUM(G22:G22)","v":0}]
["KPOS74WSD/XAR","OS-7400 System SD card (2GB)",null,null,110,{"$f":"+(1-E$13)*D22*E22","v":0},{"$f":"F22","v":0},null,null,null,null,null,null,null,null,null,110,127]
["OS 7400 COMMON & PERIPHERAL EQUIPMENT",null,null,null,null,null,{"$f":"SUM(G24:G38)","v":0}]
["KP-OSDBDL2/XAR","OS7200 16-port DLI-2",null,null,505,{"$f":"+(1-E$13)*D24*E24","v":0},{"$f":"F24","v":0},null,null,null,null,null,null,null,null,null,505,581]
["OS7400BSL3/XAR","OS 16 Port Analog Single Line Card with Message Waiting",null,null,470,0,0,null,null,null,null,null,null,null,null,null,470,541]
["OS7400B8H4/XAR","OS Combo Card with 8DLI + 8SLI Ports",null,null,550,0,0,null,null,null,null,null,null,null,null,null,550,633]
["KP-OSDB8D/XAR","OS7200  8-port DLI Card",null,null,253,0,0,null,null,null,null,null,null,null,null,null,253,291]
["OS7400B8S3/XAR","OS 8 Port Analog Single Line Card",null,null,330,0,0,null,null,null,null,null,null,null,null,null,330,380]
["KP-OSDB8T2/XAR","OS 7200 8-port Loop Trunk Card ",null,null,308,0,0,null,null,null,null,null,null,null,null,null,308,354]
["KP-OSDB16T/XAR","OS7000 16-Port Loop Trunk Card",null,null,654,0,0,null,null,null,null,null,null,null,null,null,654,752]
["KP-OSDBTE1/XAR","OS7200 T1-PRI Trunk Card ",null,null,992,0,0,null,null,null,null,null,null,null,null,null,992,1141]
["KPOS74BTEP/XAR","2 CKT T-1-PRI Card (TEPRI2) \nSupported on OS7400 - Only",null,null,1325,0,0,null,null,null,null,null,null,null,null,null,1325,1524]
["KPOS74BMGI/XAR","OS MGI-64 Gateway Card \nRequired for IP-UMS Configured for 3-8 Fax Ports Requires IP Certification for Tech Support",null,null,3000,{"$f":"+(1-E$13)*D33*E33","v":0},0,null,null,null,null,null,null,null,null,null,3000,3450]
["KPOS74BOAS/XAR","OS7100, OS-7200, 7200-S  & 7400 Optional Applications Service Card (OAS) \nSupports 1-2 Fax Ports when using IP-UMS Fax Option\nRequires IP Certification for Tech Support",null,null,550,0,0,null,null,null,null,null,null,null,null,null,550,633]
["OS7400BCNF/XAR","24 Port Conference Card for OfficeServ 7200-S, OfficeServ 7200, and OfficeServ 7400",null,null,{"$f":"IF($S$16=\"USA\",Q35,R35)","v":600},{"$f":"+(1-E$13)*D35*E35","v":0},{"$f":"F35","v":0},null,null,null,null,null,null,null,null,null,600,690]
["KPOS74BCRM/XAR","Common Resource Module (CRM)\nInstalls on the LP40",null,null,253,0,0,null,null,null,null,null,null,null,null,null,253,291]
["KP-OSDBMIS/XAR","Miscellaneous Card\nInstalls on the LP40",null,null,131,0,0,null,null,null,null,null,null,null,null,null,131,151]
["KPOS74BMOD/XAR","OS Modem Card This model is a universal modem for all 7000 systems",null,null,{"$f":"IF($S$16=\"USA\",Q38,R38)","v":220},{"$f":"+(1-E$13)*D38*E38","v":0},{"$f":"F38","v":0},null,null,null,null,null,null,null,null,null,220,253]
["SINGLE ITEMS & SPARES",null,null,1,null,null,{"$f":"SUM(G40:G43)","v":0}]
["KPOS74MA/XAR","OS 7400 Universal Cabinet",null,null,1655,{"$f":"+(1-E$13)*D40*E40","v":0},{"$f":"F40","v":0},null,null,null,null,null,null,null,null,null,1655,1903]
["KPOS74BMPM/XAR","Master Processor MP40",null,null,992,{"$f":"+(1-E$13)*D41*E41","v":0},{"$f":"F41","v":0},null,null,null,null,null,null,null,null,null,992,1141]
["KPOS74BLP/XAR","Local Processor LP40",null,null,550,0,{"$f":"F42","v":0},null,null,null,null,null,null,null,null,null,550,633]
["F-PGA44-00028A","OS 7400 Power Supply",null,null,442,0,{"$f":"F43","v":0},null,null,null,null,null,null,null,null,null,442,508]
["OfficeServ 7200 Platform",null,null,null,null,null,{"$f":"SUM(G45+G49+G51+G65)","v":0}]
["OS 7200 KITS",null,null,null,null,null,{"$f":"SUM(G46:G48)","v":0}]
["7200KIT","OS 7200 Starter Kit\nContains: Universal Cabinet, MP20 Card, Misc Card, SD card w/Software Program",null,null,{"$f":"IF($S$16=\"USA\",Q46,R46)","v":1082},{"$f":"+(1-E$13)*D46*E46","v":0},{"$f":"F46","v":0},null,null,null,null,null,null,null,null,null,1082,1244]
["7200EKIT","OS 7200 Expansion Kit\nContains: Universal Cabinet, LCP Card w/Link Cables",null,null,937,{"$f":"+(1-E$13)*D47*E47","v":0},{"$f":"F47","v":0},null,null,null,null,null,null,null,null,null,937,1078]
["F-B-OS7200-IP","OS 7200 IP Starter Kit\nContains: Universal Cabinet, MP20 Procesor, SD Card w/Software Program , 1 ea. Misc Card, 1 ea. OAS Card, \n12 ea. SIP Trunk Licenses",null,null,1440,{"$f":"+(1-E$13)*D48*E48","v":0},{"$f":"F48","v":0},null,null,null,null,null,null,null,null,null,1440,1656]
["OS 7200 SOFTWARE",null,null,1,null,null,{"$f":"SUM(G50:G50)","v":0}]
["KP-OSDWSDC/XAR","2GB SD Media Card  with 7200 Software Program",null,null,109,{"$f":"+(1-E$13)*D50*E50","v":0},{"$f":"F50","v":0},null,null,null,null,null,null,null,null,null,109,125]
["OS 7200 COMMON & PERIPHERAL EQUIPMENT",null,null,1,null,null,{"$f":"SUM(G52:G64)","v":0}]
["KPOS74BCRM/XAR","Common Resource Module (CRM)\nInstalls on the MCP/MP20 ",null,null,253,{"$f":"+(1-E$13)*D52*E52","v":0},{"$f":"F52","v":0},null,null,null,null,null,null,null,null,null,253,291]
["KP-OSDBMIS/XAR","Miscellaneous Card (OS MISC)",null,null,131,{"$f":"+(1-E$13)*D53*E53","v":0},{"$f":"F53","v":0},null,null,null,null,null,null,null,null,null,131,151]
["KP-OSDBDL2/XAR","OS7200 16-Port DLI-2 Digital Line Interface",null,null,505,0,0,null,null,null,null,null,null,null,null,null,505,581]
["OS7400BSL3/XAR","OS 16 Port Analog Single Line Card with Message Waiting",null,null,470,0,0,null,null,null,null,null,null,null,null,null,470,541]
["OS7400B8H4/XAR","OS Combo Card with 8DLI + 8SLI Ports",null,null,550,0,0,null,null,null,null,null,null,null,null,null,550,633]
["KP-OSDB8D/XAR","OS7200 8-Port DLI Card",null,null,253,0,0,null,null,null,null,null,null,null,null,null,253,291]
["OS7400B8S3/XAR","OS 8 Port Analog Single Line Card",null,null,330,0,0,null,null,null,null,null,null,null,null,null,330,380]
["KP-OSDB8T2/XAR","OS7200 8-Port Loop Trunk Card",null,null,308,0,0,null,null,null,null,null,null,null,null,null,308,354]
["KP-OSDB16T/XAR","OS7200 16-Port Loop Trunk Card",null,null,654,0,0,null,null,null,null,null,null,null,null,null,654,752]
["KP-OSDBTE1/XAR","OS7200 T1/PRI Trunk Card",null,null,992,0,0,null,null,null,null,null,null,null,null,null,992,1141]
["KPOS74BOAS/XAR","OS7100, OS-7200, 7200-S  & 7400 Optional Applications Service Card (OAS)\nSupports 1-2 Fax Ports when using IP-UMS Fax Option\nRequires IP Certification for Tech Support",null,null,550,{"$f":"+(1-E$13)*D62*E62","v":0},0,null,null,null,null,null,null,null,null,null,550,633]
["OS7400BCNF/XAR","24 Port Conference Card for OfficeServ 7200-S, OfficeServ 7200, and OfficeServ 7400",null,null,600,{"$f":"+(1-E$13)*D63*E63","v":0},0,null,null,null,null,null,null,null,null,null,600,690]
["KPOS74BMOD/XAR","OS Modem Card This model is a universal modem for all 7000 systems",null,null,{"$f":"IF($S$16=\"USA\",Q64,R64)","v":220},{"$f":"+(1-E$13)*D64*E64","v":0},{"$f":"F64","v":0},null,null,null,null,null,null,null,null,null,220,253]
["SINGLE ITEMS & SPARES",null,null,null,null,null,{"$f":"SUM(G66:G70)","v":0}]
["KP-OSDBMP2/XAR","OS7200 MP20 Main Control Processor",null,null,772,{"$f":"+(1-E$13)*D66*E66","v":0},{"$f":"F66","v":0},null,null,null,null,null,null,null,null,null,772,888]
["KP-OSDBLCP/XAR","OS7200 Local Control Processor",null,null,385,{"$f":"+(1-E$13)*D67*E67","v":0},{"$f":"F67","v":0},null,null,null,null,null,null,null,null,null,385,443]
["KP-OSDMA/XAR","OS7200 Universal Cabinet",null,null,882,0,{"$f":"F68","v":0},null,null,null,null,null,null,null,null,null,882,1014]
["KP-OSDBPSU/XAR","OS7200 PSU",null,null,304,0,{"$f":"F69","v":0},null,null,null,null,null,null,null,null,null,304,350]
["KP-OSDAWMB/XAR","OS7200 Wall Mount Bracket",null,null,21,0,{"$f":"F70","v":0},null,null,null,null,null,null,null,null,null,21,24]
["OfficeServ 7200-S  Platform",null,null,null,null,null,{"$f":"SUM(G72+G75+G77+G93)","v":0}]
["OS 7200-S KITS",null,null,null,null,null,{"$f":"SUM(G73:G74)","v":0}]
["F-B-OS7200S-01","OS 7200-S Starter Kit\nContains: 7200 Cabinet, MP20S Card, SD card w/Software Program and 4 ports of Voice Mail",null,null,{"$f":"IF($S$16=\"USA\",Q73,R73)","v":1099},{"$f":"+(1-E$13)*D73*E73","v":0},{"$f":"F73","v":0},null,null,null,null,null,null,null,null,null,1099,1264]
["F-B-OS7200S-IP","OS 7200-S IP Starter Kit\nContains: 7200 Cabinet, MP20S Card, SD card w/Software Program and 4 ports of Voice Mail, 6 ea. OS MGI License, \n8 ea. SIP Trunk Licenses",null,null,{"$f":"IF($S$16=\"USA\",Q74,R74)","v":1382},{"$f":"+(1-E$13)*D74*E74","v":0},{"$f":"F74","v":0},null,null,null,null,null,null,null,null,null,1382,1589]
["OS 7200-S SOFTWARE",null,null,null,null,null,{"$f":"SUM(G76:G76)","v":0}]
["OS-720WSDC/XAR","2GB SD Media Card  with Software Program for MP20S",null,null,{"$f":"IF($S$16=\"USA\",Q76,R76)","v":109},{"$f":"+(1-E$13)*D76*E76","v":0},{"$f":"F76","v":0},null,null,null,null,null,null,null,null,null,109,125]
["OS 7200-S  COMMON & PERIPHERAL EQUIPMENT",null,null,null,null,null,{"$f":"SUM(G78:G92)","v":0}]
["KP-OSDBDL2/XAR","OS7200 16-Port DLI-2 Digital Line Interface",null,null,{"$f":"IF($S$16=\"USA\",Q78,R78)","v":505},{"$f":"+(1-E$13)*D78*E78","v":0},{"$f":"F78","v":0},null,null,null,null,null,null,null,null,null,505,581]
["OS7400BSL3/XAR","OS 16 Port Analog Single Line Card with Message Waiting",null,null,470,0,{"$f":"F79","v":0},null,null,null,null,null,null,null,null,null,470,541]
["OS7400B8H4/XAR","OS Combo Card with 8DLI + 8SLI Ports",null,null,550,0,0,null,null,null,null,null,null,null,null,null,550,633]
["KP-OSDB8D/XAR","OS7200 8-Port DLI Card",null,null,253,0,0,null,null,null,null,null,null,null,null,null,253,291]
["OS7400B8S3/XAR","OS 8 Port Analog Single Line Card",null,null,330,0,0,null,null,null,null,null,null,null,null,null,330,{"$f":"ROUND(Q82*(S$17),0)","v":380}]
["KP-OSDB8T2/XAR","OS7200 8-Port Loop Trunk Card",null,null,308,0,0,null,null,null,null,null,null,null,null,null,308,354]
["KP-OSDB16T/XAR","OS7200 16-Port Loop Trunk Card",null,null,654,0,0,null,null,null,null,null,null,null,null,null,654,752]
["KP-OSDBTE1/XAR","OS7200 T1/PRI Trunk Card",null,null,992,0,0,null,null,null,null,null,null,null,null,null,992,1141]
["KPOS74BOAS/XAR","OS7100, OS-7200, 7200-S  & 7400 Optional Applications Service Card (OAS)\nRequires IP Certification for Tech Support",null,null,550,{"$f":"+(1-E$13)*D86*E86","v":0},0,null,null,null,null,null,null,null,null,null,550,633]
["OS7400BCNF/XAR","24 Port Conference Card for OfficeServ 7200-S, OfficeServ 7200, and OfficeServ 7400",null,null,600,0,0,null,null,null,null,null,null,null,null,null,600,690]
["KPOS74BMOD/XAR","OS Modem Card This model is a universal modem for all 7000 systems",null,null,220,0,0,null,null,null,null,null,null,null,null,null,220,253]
["KPOS71BUNI/XAR","Universal Card (UNI)  This card has 3 connectors to house up to 3 station/trunk modules.",null,null,178,0,0,null,null,null,null,null,null,null,null,null,178,205]
["KPOS71BDLM/XAR","4DLM (4-Ckt Digital Line Module) 4-Circuit Digital Station Interface Module",null,null,135,0,0,null,null,null,null,null,null,null,null,null,135,155]
["OS-710BSL2/XAR","OS 4SL2U (4-Ckt Single-Line Module)\n4-Circuit Single-Line (analog) Interface Module",null,null,185,0,0,null,null,null,null,null,null,null,null,null,185,213]
["KPOS71BTRM/XAR","4TRM (4-Ckt C.O. Interface Module)\n4-Circuit C.O. Line (analog trunk) Module",null,null,168,0,0,null,null,null,null,null,null,null,null,null,168,193]
["SINGLE ITEMS & SPARES",null,null,null,null,null,{"$f":"SUM(G94:G96)","v":0}]
["OS-720BMPS/XAR","MP20S Main Control Processor Card for 7200-S system with 4 ports of Voice Mail",null,null,1757,{"$f":"+(1-E$13)*D94*E94","v":0},{"$f":"F94","v":0},null,null,null,null,null,null,null,null,null,1757,2021]
["KP-OSDMA/XAR","OS7200 Universal Cabinet",null,null,882,{"$f":"+(1-E$13)*D95*E95","v":0},{"$f":"F95","v":0},null,null,null,null,null,null,null,null,null,882,1014]
["KP-OSDAWMB/XAR","OS7200 Wall Mount Bracket",null,null,21,0,{"$f":"F96","v":0},null,null,null,null,null,null,null,null,null,21,24]
["OfficeServ 7100 Platform",null,null,null,null,null,{"$f":"SUM(G98+G101+G103)","v":0}]
["OS 7100 KITS",null,null,null,null,null,{"$f":"SUM(G99:G100)","v":0}]
["OS71SBSPKG10A","OS 7100  Small Business System Package - iDCS\nIncludes: 1ea -OS 7100 System Cabinet, 1ea - MP10a Processor Card, 1ea - OS7100SD10a Card, 1ea - UNI Card, 1ea - 4TRM Card, 2ea - 4DLM Card, 6ea - iDCS 28D Keysets\nWhen using IP Telephony Applications (IP Keysets, WAP, SPNet) with this Package, MGI Channels must be licensed. Please see the OfficeServ Applications section of this form.",null,null,{"$f":"IF($S$16=\"USA\",Q99,R99)","v":1985},{"$f":"+(1-E$13)*D99*E99","v":0},{"$f":"F99","v":0},null,null,null,null,null,null,null,null,null,1985,2283]
["F-B-OS7100-IP","OS7100 IP Starter Kit\nIncludes: 1 ea. System Cabinet with Power Supply, AC Power Cord and Wall Mount Bracket, 1 ea. MP10a Main Processor Card, 1 ea. SD Media Card, 4 ea. OS MGI License, 6 ea. SIP Trunk Licenses",null,null,892,{"$f":"+(1-E$13)*D100*E100","v":0},{"$f":"F100","v":0},null,null,null,null,null,null,null,null,null,892,1026]
["OS 7100 SOFTWARE",null,null,null,null,null,{"$f":"SUM(G102:G102)","v":0}]
["KPOS71WM3/XAR","OS7100SDa Media card with system software for MP10a (2GB)\nFor Use in the MP10a Only",null,null,65,{"$f":"+(1-E$13)*D102*E102","v":0},0,null,null,null,null,null,null,null,null,null,65,75]
["OS 7100 COMMON & PERIPHERAL EQUIPMENT",null,null,1,null,null,{"$f":"SUM(G104:G123)","v":0}]
["KPOS71M/XAR","System Cabinet   The OS 7100 System Cabinet Includes: Power Supply, AC Power Cord & wall mount bracket.",null,null,555,{"$f":"+(1-E$13)*D104*E104","v":0},0,null,null,null,null,null,null,null,null,null,555,638]
["F-PGA44-00049A","OfficeServ 7100 Power Supply",null,null,100,0,{"$f":"F105","v":0},null,null,null,null,null,null,null,null,null,100,115]
["KPOS71ARMB/XAR","Rack Mount Bracket\nThe Rack-Mount Bracket is used to mount the System Cabinet in a standard 19\" data equipment rack",null,null,38,0,0,null,null,null,null,null,null,null,null,null,38,44]
["KPOS71BMP3/XAR","MP10a Main Processor Card for the OS-7100 system \nThe MP10a requires the OS7100 SD10a Card (Purchased Separately)",null,null,941,0,0,null,null,null,null,null,null,null,null,null,941,1082]
["F-PGA31-00003A","OS7100 Fan",null,null,10,0,0,null,null,null,null,null,null,null,null,null,10,12]
["OS7100MP10A1","OS7100 MP10a with SD Card",null,null,1006,0,{"$f":"F109","v":0},null,null,null,null,null,null,null,null,null,1006,1157]
["KPOS71BUNI/XAR","Universal Card (UNI)  This card has 3 connectors to house up to 3 station/trunk modules.",null,null,178,0,0,null,null,null,null,null,null,null,null,null,178,205]
["KPOS71BDLM/XAR","4DLM (4-Ckt Digital Line Module) 4-Circuit Digital Station Interface Module",null,null,135,0,0,null,null,null,null,null,null,null,null,null,135,155]
["OS-710BSL2/XAR","OS 4SL2U (4-Ckt Single-Line Module)\n4-Circuit Single-Line (analog) Interface Module",null,null,185,0,0,null,null,null,null,null,null,null,null,null,185,213]
["KPOS71BTRM/XAR","4TRM (4-Ckt C.O. Interface Module)\n4-Circuit C.O. Line (analog trunk) Module",null,null,168,0,0,null,null,null,null,null,null,null,null,null,168,193]
["KPOS74BOAS/XAR","OS7100, OS-7200, 7200-S  & 7400 Optional Applications Service Card (OAS)\nRequires IP Certification for Tech Support",null,null,550,0,0,null,null,null,null,null,null,null,null,null,550,633]
["KPOS74BMOD/XAR","OS Modem Card This model is a universal modem for all 7000 systems",null,null,220,0,0,null,null,null,null,null,null,null,null,null,220,253]
["KP-OSDB16T/XAR","OS7000 16-Port Loop Trunk Card",null,null,654,0,0,null,null,null,null,null,null,null,null,null,654,752]
["OS7400B8S3/XAR","OS 8 Port Analog Single Line Card",null,null,330,0,0,null,null,null,null,null,null,null,null,null,330,380]
["OS7400BSL3/XAR","OS 16 Port Analog Single Line Card with Message Waiting",null,null,470,0,0,null,null,null,null,null,null,null,null,null,470,541]
["OS7400B8H4/XAR","OS Combo Card with 8DLI + 8SLI Ports",null,null,550,0,0,null,null,null,null,null,null,null,null,null,550,633]
["KP-OSDB8T2/XAR","OS 7200 8-Port Loop Trunk Card ",null,null,308,0,0,null,null,null,null,null,null,null,null,null,308,354]
["KP-OSDBTE1/XAR","OS7200 T1/PRI Trunk Card ",null,null,{"$f":"IF($S$16=\"USA\",Q121,R121)","v":992},0,0,null,null,null,null,null,null,null,null,null,992,1141]
["KP-OSDB8D/XAR","OS7200  8-port DLI card",null,null,253,0,0,null,null,null,null,null,null,null,null,null,253,291]
["KP-OSDBDL2/XAR","OS7200 16-port DLI-2",null,null,505,0,0,null,null,null,null,null,null,null,null,null,505,581]
["OfficeServ 7030  Platform",null,null,null,null,null,{"$f":"SUM(G125+G128+G135)","v":0}]
["OS 7030 KITS",null,null,null,null,null,{"$f":"SUM(G126:G127)","v":0}]
["F-B-OS7030-03","OS 7030 Starter Kit with 18B iDCS Keysets\nIncludes:  7030 KSU  w/Software Program, 2 ports of Auto Attendant, 1 ea. 4DM and 3 ea. iDCS 18B  keysets, and 2 single line ports",null,null,{"$f":"IF($S$16=\"USA\",Q126,R126)","v":890},{"$f":"+(1-E$13)*D126*E126","v":0},{"$f":"F126","v":0},null,null,null,null,null,null,null,null,null,890,1024]
["F-B-OS7030-IP","OS 7030 IP Starter Kit\nIncludes:  7030 KSU  w/Software Program, 2 ports of Auto Attendant, 4 ea. OS MGI License",null,null,{"$f":"IF($S$16=\"USA\",Q127,R127)","v":440},{"$f":"+(1-E$13)*D127*E127","v":0},{"$f":"F127","v":0},null,null,null,null,null,null,null,null,null,440,506]
["OS 7030  COMMON & PERIPHERAL EQUIPMENT",null,null,1,null,null,{"$f":"SUM(G129:G134)","v":0}]
["OS-703B2D/XAR","OS7030 2 port digital station module",null,null,74,{"$f":"+(1-E$13)*D129*E129","v":0},0,null,null,null,null,null,null,null,null,null,74,85]
["OS-703B4D/XAR","OS7030 4 port digital station module",null,null,90,0,0,null,null,null,null,null,null,null,null,null,90,104]
["OS-703B4S/XAR","OS7030 4 port single line module with CID",null,null,129,0,0,null,null,null,null,null,null,null,null,null,129,148]
["OS-703B4T/XAR","OS7030 4 port trunk module with CID",null,null,119,0,0,null,null,null,null,null,null,null,null,null,119,137]
["KPOS74BMOD/XAR","OS Modem Card This model is a universal modem for all 7000 systems",null,null,{"$f":"IF($S$16=\"USA\",Q133,R133)","v":220},{"$f":"+(1-E$13)*D133*E133","v":0},{"$f":"F133","v":0},null,null,null,null,null,null,null,null,null,220,253]
["F-PGA44-00061B","OS7030 Power Supply",null,null,80,0,0,null,null,null,null,null,null,null,null,null,80,92]
["SINGLE ITEMS & SPARES",null,null,11,null,null,{"$f":"SUM(G136:G136)","v":0}]
["OS-703MA/XAR","OS7030 Cabinet (Main KSU unit)",null,null,515,{"$f":"+(1-E$13)*D136*E136","v":0},0,null,null,null,null,null,null,null,null,null,515,592]
["Ubigate",null,null,null,null,null,{"$f":"G138","v":0}]
["UBIGATE ETHERNET SWITCHES",null,null,null,null,null,{"$f":"SUM(G139:G143)","v":0}]
["iES-4024GD/XAR","L3 24 Port POE+ switch 1 Year Warranty",null,null,{"$f":"IF($S$16=\"USA\",Q139,R139)","v":5580},{"$f":"+(1-E$13)*D139*E139","v":0},{"$f":"F139","v":0},null,10,null,null,null,null,null,null,null,5580]
["iES-4028XP/XAR","L2 24 Port Dual Power POE+ Switch 1 Year Warranty",null,null,3272,0,{"$f":"F140","v":0},null,20,1,1,1,1,1,null,null,3272]
["iES-4028GP/XAR","L2 24 Port Single Power POE+ Switch 1 Year Warranty",null,null,2062,0,{"$f":"F141","v":0},null,30,2,2,2,2,2,null,null,2062]
["IES-4028FP/XAR","iES 24 port 10/100M Layer 2 Managed PoE Ethernet Switch\n1 Year Warranty",null,null,{"$f":"IF($S$16=\"USA\",Q142,R142)","v":615},{"$f":"+(1-E$13)*D142*E142","v":0},{"$f":"F142","v":0},null,40,3,3,3,3,3,null,null,615,707]
["IES-4024GP/XAR","iES 22 port 10/100/1000M Layer 2 Managed PoE \nEthernet Switch  1 Year Warranty",null,null,{"$f":"IF($S$16=\"USA\",Q143,R143)","v":950},{"$f":"+(1-E$13)*D143*E143","v":0},{"$f":"F143","v":0},null,50,4,4,4,4,4,null,null,950,1093]
["Terminals",null,null,null,null,null,{"$f":"SUM(G145+G151)","v":0},null,60,5,5,5,5,5]
["iDCS DIGITAL KEYSETS",null,null,1,null,null,{"$f":"SUM(G146:G150)","v":0},null,70,6,6,6,6,6]
["KPDF28SED/XAR","iDCS 28-Button Speaker Phone (Dark Gray)",null,null,{"$f":"IF($S$16=\"USA\",Q146,R146)","v":219},{"$f":"+(1-E$13)*D146*E146","v":0},{"$f":"F146","v":0},null,120,9,9,9,9,9,null,null,219,{"$f":"ROUND(Q146*(S$17),0)","v":252}]
["KPDF18SED/XAR   ","iDCS 18-Button Speaker Phone (Dark Gray)",null,null,{"$f":"IF($S$16=\"USA\",Q147,R147)","v":187},{"$f":"+(1-E$13)*D147*E147","v":0},{"$f":"F147","v":0},null,130,20,20,12,15,16,null,null,187,215]
["KPDF08SED/XAR","iDCS 8-Button Speaker Phone (Dark Gray)",null,null,{"$f":"IF($S$16=\"USA\",Q148,R148)","v":154},0,0,null,140,30,30,14,20,24,null,null,154,177]
["KPDF14SDSD/XAR","iDCS 14-Button Add-On Module Strip (Dark Gray)",null,null,{"$f":"IF($S$16=\"USA\",Q149,R149)","v":44},0,0,null,150,null,null,null,null,null,null,null,44,51]
["KPDF64SDSD/XAR","iDCS 64-Button Add-On Console (Dark Gray) ",null,null,{"$f":"IF($S$16=\"USA\",Q150,R150)","v":230},0,0,null,200,null,null,null,null,null,null,null,230,265]
["IP KEYSETS",null,null,null,null,null,{"$f":"SUM(G152:G172)","v":0},null,250]
["SMT-i6010K/XAR","i6010 12 Button IP Phone 5 Year Warranty  {Promotional Price!}",null,null,{"$f":"IF($S$16=\"USA\",Q152,R152)","v":180},{"$f":"+(1-E$13)*D152*E152","v":0},0,null,300,null,null,null,null,null,null,null,180,207]
["SMT-i6011K/XAR","i6011 12 Button IP Phone 5 Year Warranty",null,null,215,0,0,null,400,null,null,null,null,null,null,null,215,247]
["SMT-i6020K/XAR","i6020 24 Button IP Phone 5 Year Warranty\n{Promotional Price!}",null,null,199,0,0,null,500,40,40,16,25,32,null,null,199,228]
["SMT-i6021K/XAR","i6021 24 Button IP Phone  5 Year Warranty",null,null,239,{"$f":"+(1-E$13)*D155*E155","v":0},0,null,null,50,50,18,30,40,null,null,239,275]
["SMT-A60PW/XAR","i6000 Power Supply",null,null,32,0,0,null,null,60,60,20,35,48,null,null,32,37]
["SMT-A60WB/XAR","SMT 6000 series wall mount",null,null,20,0,0,null,2,80,80,28,45,64,null,null,20,23]
["SMT-i3105D/XAR","SMT-i3105D Entry Level 5B IP telphone, Dark Gray\nPower Adapter Sold Separately  5 Year Warranty",null,null,123,0,0,null,3,90,90,32,50,72,null,null,123,141]
["SMT-i5210S/XAR","SMT-i5210S 14B Backlit IP telephone, Dark Gray\nPower Adapter Sold Separately  5 Year Warranty",null,null,208,0,0,null,4,100,100,36,70,80,null,null,208,239]
["SMT-i5220K/XAR","SMT-i5220K 24B Backlit IP telephone, Dark Gray\nPower Adapter Sold Separately 5 Year Warranty",null,null,243,0,0,null,5,150,150,40,100,88,null,null,243,279]
["SMT-i5230D/XAR","SMT-i5230D 5B Desiless Backlit IP telephone, Dark Gray\nPower Adapter Sold Separately 5 Year Warranty",null,null,270,0,0,null,null,null,null,null,null,null,null,null,270,311]
["SMT-i5343K/XAR","SMT-i5343K IP Telephone with Color LCD, Dark Gray\nPower Adapter Sold Separately 5 Year Warranty",null,null,399,0,0,null,null,null,null,null,null,null,null,null,399,459]
["SMT-AW53CA/XAR","USB Camera for SMT-i5343",null,null,99,0,0,null,null,null,null,null,null,null,null,null,99,114]
["WDS-AADT/XAR","SMT-i5343 Series Power Adapter\nOne per Telephone required, if POE switch is not used",null,null,25,0,0,null,null,null,null,null,null,null,null,null,25,29]
["SMT-i5264D/XAR","SMT-i5264D 64B IP Add-On Module, Dark Gray\nPower Adapter Sold Separately 5 Year Warranty",null,null,255,0,0,null,null,null,null,null,null,null,null,null,255,293]
["SMT-A52WB/XAR","Wall Mount Bracket for SMT-i5200 Series IP telephones,\nDark Gray",null,null,16,0,0,null,null,null,null,null,null,null,null,null,16,18]
["SMT-A52GE/XAR","SMT-i5200 Series Gigabit Module adapter, Dark Gray",null,null,96,0,0,null,null,null,null,null,null,null,null,null,96,110]
["SMT-A53PW/XAR","SMT-i5200 Series Power Adapter, One per Telephone or SMT-i5264D AOM is required, if PoE Switch is not used. ",null,null,20,0,0,null,null,null,null,null,null,null,null,null,20,23]
["SMT-A53PA/XAR","SMT-i3100 Series Power Adapter, One per Telephone required,\nif PoE Switch is not used",null,null,20,0,0,null,null,null,null,null,null,null,null,null,20,23]
["F-PGA96-00893B","Handset with cord for SMT-i5210, SMT-i5220, \nSMT-i5230, SMT-i5243",null,null,23,0,0,null,null,null,null,null,null,null,null,null,23,26]
["F-PGB96-00896A","Handset with cord for SMT-i3105",null,null,23,0,0,null,null,null,null,null,null,null,null,null,23,26]
["F-PGA97-01992B","Base Wedge for SMT-i5210, SMT-i5220, SMT-i5230, SMT-i5243",null,null,16,0,0,null,null,null,null,null,null,null,null,null,16,18]
["Applications",null,null,null,null,null,{"$f":"SUM(G174,G176,G181,G189,G198,G207,G209)","v":0}]
["VOICE PROCESSING SYSTEMS",null,null,null,null,null,{"$f":"SUM(G175)","v":0}]
["OS7400BVM2/XAR","SVMi-20i Card SSD 8G\n( OS 7200 or OS 7400)",null,null,{"$f":"IF($S$16=\"USA\",Q175,R175)","v":1298},{"$f":"+(1-E$13)*D175*E175","v":0},{"$f":"F175","v":0},null,null,null,null,null,null,null,null,null,1298,1493]
["CTI / LINK LICENSES          (Must submit a License Request Form to order OfficeServ Licenses)",null,null,null,null,null,{"$f":"SUM(G177:G180)","v":0}]
["KP-AP2-WES/XAR","OfficeServ Link V3 License (with EasySet)\nRequired for Call, Operator, Open TSP, Messenger, and Communicator Deskphone Mode",null,null,{"$f":"IF($S$16=\"USA\",Q177,R177)","v":206},{"$f":"+(1-E$13)*D177*E177","v":0},{"$f":"F177","v":0},null,null,null,null,null,null,null,null,null,206,237]
["KP-AP2-WOP/XAR","OfficeServ Operator License",null,null,{"$f":"IF($S$16=\"USA\",Q178,R178)","v":617},{"$f":"+(1-E$13)*D178*E178","v":0},0,null,null,null,null,null,null,null,null,null,617,710]
["KP-AP2-WOT/XAR","TSP License for Xchange for Samsung",null,null,{"$f":"IF($S$16=\"USA\",Q179,R179)","v":75},0,0,null,null,null,null,null,null,null,null,null,75,86]
["KP-AP2-WUC/STD","OS Communicator - DeskPhone Mode License \n(Any Samsung Keyset)",null,null,{"$f":"IF($S$16=\"USA\",Q180,R180)","v":50},0,0,null,6,200,null,44,150,98,null,null,50,58]
["RESOURCE  LICENSE          (Must submit a License Request Form to order OfficeServ Licenses)",null,null,null,null,null,{"$f":"SUM(G182:G188)","v":0},null,7,250,null,48,200,128]
["KP-AP5-WMG/XAR","7030 MGI License (Sold individually in increments of 1 to 4)",null,null,{"$f":"IF($S$16=\"USA\",Q182,R182)","v":83},{"$f":"+(1-E$13)*D182*E182","v":0},0,null,10,null,null,null,null,null,null,null,83,95]
["KP-AP4-WMG/XAR","7100 MGI License (Sold individually in increments of 1 to 8)",null,null,83,{"$f":"+(1-E$13)*D183*E183","v":0},0,null,20,null,null,null,null,null,null,null,83,95]
["KP-AP7-WMG/STD","7200-S MGI License (Sold individually in increments of 1 to 6)",null,null,83,0,0,null,30,null,null,null,null,null,null,null,83,95]
["KP-AP5-WVM/XAR","7030 Voice Mail License  (turns on VM function)",null,null,255,0,0,null,40,null,null,null,null,null,null,null,255,293]
["KP-AP7-WVM/STD","7200-S Voice Mail Expansion License (single port increments)  Maximum 2",null,null,130,0,0,null,50,null,null,null,null,null,null,null,130,150]
["OS7000WVMS/XAR","OS 7200/7400 SVMi-20i Voice Mail License (Maximum 20) \n(Sold in increments of 4-Card comes with 4 Ports)",null,null,122,0,0,null,60,null,null,null,null,null,null,null,122,140]
["OS7000WFAX/XAR","OS 7200/7400 SVMi-20i Fax License (Maximum 4) \n(Sold in increments of 1)",null,null,249,0,0,null,90,null,null,null,null,null,null,null,249,286]
["SIP  LICENSE          (Must submit a License Request Form to order OfficeServ Licenses)",null,null,null,null,null,{"$f":"SUM(G190:G197)","v":0},null,100]
["KP-AP9-W3P/XAR","Per Seat License for 3rd Party SIP Phone",null,null,{"$f":"IF($S$16=\"USA\",Q190,R190)","v":150},{"$f":"+(1-E$13)*D190*E190","v":0},0,null,110,null,null,null,null,null,null,null,150,173]
["KP-AP9-WSA/STD","SIP Application Ports  for IP-UMS, IVR, ACD",null,null,36,{"$f":"+(1-E$13)*D191*E191","v":0},0,null,120,null,null,null,null,null,null,null,36,41]
["KP-AP9-WT3/STD","SIP per Trunk License (OS-7030 System to ITSP)",null,null,16,0,0,null,130,null,4,1,1,null,null,null,16,18]
["KP-AP9-WT1/STD","SIP per Trunk License (OS-7100 System to ITSP)",null,null,16,0,0,null,140,null,8,2,2,null,null,null,16,18]
["KP-AP9-WTS/STD","SIP per Trunk License (OS-7200-S System to ITSP)",null,null,26,0,0,null,150,null,12,3,3,null,null,null,26,30]
["KP-AP9-WT2/STD","SIP per Trunk License (OS-7200 System to ITSP)",null,null,26,0,0,null,160,null,16,4,4,null,null,null,26,30]
["KP-AP9-WT4/STD","SIP per Trunk License (OS-7400 System to ITSP)",null,null,26,0,0,null,170,null,null,null,5,null,null,null,26,30]
["OS7000WFMC/STD","WE VoIP License",null,null,56,0,0,null,180,null,null,null,6,null,null,null,56,64]
["SERVICE LICENSE          (Must submit a License Request Form to order OfficeServ Licenses)",null,null,null,null,null,{"$f":"SUM(G199:G206)","v":0},null,190,null,null,null,7]
["KP-AP1-WSP/XAR","OfficeServ Softphone or Communicator SoftPhone Mode",null,null,{"$f":"IF($S$16=\"USA\",Q199,R199)","v":205},{"$f":"+(1-E$13)*D199*E199","v":0},0,null,200,null,null,null,8,null,null,null,205,236]
["KP-AP6-WMX/STD","Executive Mobex per Port License (all 7000 systems)\n(Required for Executive Mobex Only)",null,null,62,{"$f":"+(1-E$13)*D200*E200","v":0},{"$f":"F200","v":0},null,210,null,null,null,null,null,null,null,62,71]
["KP-AP9-WS3/STD","SPNet License (OS-7030 System to other Samsung \nOfficeServ system)",null,null,83,0,0,null,220,null,null,null,null,null,null,null,83,95]
["KP-AP9-WS1/STD","SPNet License (OS-7100 System to other Samsung \nOfficeServ system)",null,null,83,0,0,null,230,null,null,null,null,null,null,null,83,95]
["KP-AP9-W2S/STD","SPNet License (OS-7200-S System to other Samsung \nOfficeServ system)",null,null,702,0,0,null,240,null,null,null,null,null,null,null,702,{"$f":"ROUND(Q203*(S$17),0)","v":807}]
["KP-AP9-WS2/STD","SPNet License (OS-7200 System to other Samsung \nOfficeServ system)",null,null,702,0,0,null,250,null,null,null,null,null,null,null,702,807]
["KP-AP9-WS4/STD","SPNet License (OS-7400 System to other Samsung \nOfficeServ system)",null,null,702,0,0,null,300,null,null,null,null,null,null,null,702,807]
["KP-AP8-WCN/STD","CNF24 Conference Channel License",null,null,50,0,0,null,400,null,null,null,null,null,null,null,50,58]
["E-MAIL GATEWAY  LICENSE          (Must submit a License Request Form to order OfficeServ Licenses)",null,null,null,null,null,{"$f":"SUM(G208)","v":0},null,500]
["KP-AP3-WEG/XAR","SVM e-Mail Gateway License (Unlimited)",null,null,{"$f":"IF($S$16=\"USA\",Q208,R208)","v":258},{"$f":"+(1-E$13)*D208*E208","v":0},0,null,null,null,null,null,null,null,null,null,258,297]
["OS IP-UMS    (IP-UMS Certification Required to Order)  (Must be ordered on separate Order through GSBN)",null,null,null,null,null,{"$f":"SUM(G210:G216)","v":0}]
["KP-AP3-WUM/STD"," IP-UMS Application Software  (0 ports)\n(Required for ALL IP-UMS Systems)",null,null,{"$f":"IF($S$16=\"USA\",Q210,R210)","v":620},{"$f":"+(1-E$13)*D210*E210","v":0},0,null,null,null,null,null,null,null,null,null,620,713]
["KP-AP3-WUP/STD","Number of IP UMS Ports \n(At least one required)",null,null,232,{"$f":"+(1-E$13)*D211*E211","v":0},0,null,null,null,null,null,null,null,null,null,232,267]
["KP-AP3-WUE/STD","Sync IP-UMS with Exchange & Outlook ",null,null,750,0,0,null,null,null,null,null,null,null,null,null,750,863]
["KP-AP3-WUS/STD","Enabling Fax Send Feature in IP UMS",null,null,185,0,0,null,null,null,null,null,null,null,null,null,185,213]
["KP-AP3-WUR/STD","Enabling Fax Receive Feature in IP UMS",null,null,185,0,0,null,null,null,null,null,null,null,null,null,185,213]
["KP-AP3-WUT/STD","Ports of TTS to be used for AA prompts only    (0 ~ 24)",null,null,620,0,0,null,null,null,null,null,null,null,null,null,620,713]
["KP-AP3-WUL/STD","TTS Languages to be used for AA prompts only     ( 0 ~ 27)",null,null,335,0,0,null,null,null,null,null,null,null,null,null,335,385]
["Samsung Call Management Suite (CMS) \nVerify configuration prior to ordering for Record and Trunk provisioning at www.cmsforsamsung.com/Partnerzone",null,null,null,null,null,{"$f":"SUM(G218+G224+G227+G239+G243+G250+G253)","v":0}]
["CMS REPORT",null,null,null,null,null,{"$f":"SUM(G219:G223)","v":0}]
["NES-S100-IC10","REPORT10 (for running call reports, viewing dashboards and listening to recordings when integrated with CMS RECORD)",null,null,{"$f":"IF($S$16=\"USA\",Q219,R219)","v":480},{"$f":"+(1-E$13)*D219*E219","v":0},{"$f":"IF(D219>=1,E219*D219,0)","v":0},null,null,null,null,null,null,null,null,null,480,552]
["NES-S100-E10","10 Extension Upgrade Pack for REPORT10",null,null,{"$f":"IF($S$16=\"USA\",Q220,R220)","v":240},0,{"$f":"IF(D220>=1,E220*D220,0)","v":0},null,null,null,null,null,null,null,null,null,240,276]
["NES-S100-E20","20 Extension Upgrade Pack for REPORT10",null,null,{"$f":"IF($S$16=\"USA\",Q221,R221)","v":400},0,{"$f":"IF(D221>=1,E221*D221,0)","v":0},null,null,null,null,null,null,null,null,null,400,460]
["NES-S100-E50","50 Extension Upgrade Pack for REPORT10",null,null,{"$f":"IF($S$16=\"USA\",Q222,R222)","v":600},0,{"$f":"IF(D222>=1,E222*D222,0)","v":0},null,null,null,null,null,null,null,null,null,600,690]
["NES-S100-E500","500 Extension Upgrade pack for REPORT10",null,null,{"$f":"IF($S$16=\"USA\",Q223,R223)","v":795},{"$f":"+(1-E$13)*D223*E223","v":0},{"$f":"IF(D223>=1,E223*D223,0)","v":0},null,null,null,null,null,null,null,null,null,795,{"$f":"ROUND(Q223*(S$17),0)","v":914}]
["CMS REPORT Optional Upgrades",null,null,null,null,null,{"$f":"SUM(G225:G226)","v":0},null,null,null,null,null,null,null,null,null,null,{"$f":"ROUND(Q224*(S$17),0)","v":0}]
["NES-S100-IC04","Additional REPORT license (for running call reports, viewing dashboards and listening to recordings when integrated with CMS RECORD)",null,null,{"$f":"IF($S$16=\"USA\",Q225,R225)","v":325},{"$f":"+(1-E$13)*D225*E225","v":0},{"$f":"IF(D225>=1,E225*D225,0)","v":0},null,6,200,null,44,150,98,null,null,325,{"$f":"ROUND(Q225*(S$17),0)","v":374}]
["NES-S100-IC05","Multi-site reporting (requires centralized REPORT [NES-S100-IC03] and provides consolidated reporting of remote sites at central site)",null,null,{"$f":"IF($S$16=\"USA\",Q226,R226)","v":660},{"$f":"+(1-E$13)*D226*E226","v":0},{"$f":"IF(D226>=1,E226*D226,0)","v":0},null,7,250,null,48,200,128,null,null,660,{"$f":"ROUND(Q226*(S$17),0)","v":759}]
["CMS RECORD (All Options Require a REPORT License)",null,null,null,null,null,{"$f":"SUM(G228+G233+G236)","v":0},null,10]
["Analog Record",null,null,null,null,null,{"$f":"SUM(G229:G232)","v":0},null,7,250,null,48,200,128]
["F-TL-S102-USBA","Hardware: Analog USB interface unit (holds a maximum of 8 recording channel licenses per unit)",null,null,{"$f":"IF($S$16=\"USA\",Q229,R229)","v":610},{"$f":"+(1-E$13)*D229*E229","v":0},{"$f":"IF(D229>=1,E229*D229,0)","v":0},null,10,null,null,null,null,null,null,null,610,{"$f":"ROUND(Q229*(S$17),0)","v":702}]
["NES-S103-A04","Analog 4 Channel Recording License (requires an analog  USB Interface Unit per 8 lines of recording)",null,null,{"$f":"IF($S$16=\"USA\",Q230,R230)","v":2670},{"$f":"+(1-E$13)*D230*E230","v":0},{"$f":"IF(D230>=1,E230*D230,0)","v":0},null,10,null,null,null,null,null,null,null,2670,{"$f":"ROUND(Q230*(S$17),0)","v":3071}]
["NES-S103-A08","Analog 8 Channel Recording License (requires an analog USB Interface Unit per 8 lines of recording)",null,null,{"$f":"IF($S$16=\"USA\",Q231,R231)","v":3945},0,{"$f":"IF(D231>=1,E231*D231,0)","v":0},null,10,null,null,null,null,null,null,null,3945,{"$f":"ROUND(Q231*(S$17),0)","v":4537}]
["NES-S103-A02","Analog 2 Channel Recording License Upgrade (2 channel upgrade to S102-A04)",null,null,{"$f":"IF($S$16=\"USA\",Q232,R232)","v":1250},0,{"$f":"IF(D232>=1,E232*D232,0)","v":0},null,7,250,null,48,200,128,null,null,1250,{"$f":"ROUND(Q232*(S$17),0)","v":1438}]
["Primary Rate PRI/T1 Record",null,null,null,null,null,{"$f":"SUM(G234:G235)","v":0},null,7,250,null,48,200,128]
["F-TL-S102-USBS","Hardware: PRI/S1 USB interface (holds a maximum of 23 recording channel licenses per unit)",null,null,{"$f":"IF($S$16=\"USA\",Q234,R234)","v":915},{"$f":"+(1-E$13)*D234*E234","v":0},{"$f":"IF(D234>=1,E234*D234,0)","v":0},null,10,null,null,null,null,null,null,null,915,{"$f":"ROUND(Q234*(S$17),0)","v":1052}]
["NES-S103-T23","23 Channel PRI Call Recording License",null,null,{"$f":"IF($S$16=\"USA\",Q235,R235)","v":3865},{"$f":"+(1-E$13)*D235*E235","v":0},{"$f":"IF(D235>=1,E235*D235,0)","v":0},null,10,null,null,null,null,null,null,null,3865,{"$f":"ROUND(Q235*(S$17),0)","v":4445}]
["SIP Record",null,null,null,null,null,{"$f":"SUM(G237:G238)","v":0},null,10]
["NES-S103-SP10","10 Channel SIP Recording License",null,null,{"$f":"IF($S$16=\"USA\",Q237,R237)","v":3665},{"$f":"+(1-E$13)*D237*E237","v":0},{"$f":"IF(D237>=1,E237*D237,0)","v":0},null,10,null,null,null,null,null,null,null,3665,{"$f":"ROUND(Q237*(S$17),0)","v":4215}]
["NES-S103-SP02","Additional 2 SIP channel License \n(2 channel upgrade to S104-SP10)",null,null,{"$f":"IF($S$16=\"USA\",Q238,R238)","v":695},{"$f":"+(1-E$13)*D238*E238","v":0},{"$f":"IF(D238>=1,E238*D238,0)","v":0},null,7,250,null,48,200,128,null,null,695,{"$f":"ROUND(Q238*(S$17),0)","v":799}]
["CMS RECORD Optional Upgrades",null,null,null,null,null,{"$f":"SUM(G240:G242)","v":0},null,10]
["NES-S105-PCIS","RECORD PCI Server License (provides server license for automatic stop/start of call recordings)",null,null,{"$f":"IF($S$16=\"USA\",Q240,R240)","v":1295},{"$f":"+(1-E$13)*D240*E240","v":0},{"$f":"IF(D240>=1,E240*D240,0)","v":0},null,10,null,null,null,null,null,null,null,1295,{"$f":"ROUND(Q240*(S$17),0)","v":1489}]
["NES-S105-PCIA","RECORD PCI Seat License (provides automatic stop/start of call recordings based on crm integration- licensed per agent seat)",null,null,{"$f":"IF($S$16=\"USA\",Q241,R241)","v":195},{"$f":"+(1-E$13)*D241*E241","v":0},{"$f":"IF(D241>=1,E241*D241,0)","v":0},null,10,null,null,null,null,null,null,null,195,{"$f":"ROUND(Q241*(S$17),0)","v":224}]
["NES-S100-CER","Call Evaluation and Reporting Add On \n(for quality monitoring of calls)",null,null,{"$f":"IF($S$16=\"USA\",Q242,R242)","v":895},{"$f":"+(1-E$13)*D242*E242","v":0},{"$f":"IF(D242>=1,E242*D242,0)","v":0},null,7,250,null,48,200,128,null,null,895,{"$f":"ROUND(Q242*(S$17),0)","v":1029}]
["CMS CONTACT (All Options Require a REPORT License)",null,null,null,null,null,{"$f":"SUM(G244,G246)","v":0},null,10]
["CMS Supervisor",null,null,null,null,null,{"$f":"G245","v":0},null,10]
["NES-S101-CCR","CMS Supervisor License (for calls queuing\\hold time\\ group wallboards\\dashboards and reporting on agent activity) Can replace REPORT License if CMS Contact used at main site. Verify configuration at cmsforsamsung.com/Partnerzone",null,null,{"$f":"IF($S$16=\"USA\",Q245,R245)","v":1325},{"$f":"+(1-E$13)*D245*E245","v":0},{"$f":"IF(D245>=1,E245*D245,0)","v":0},null,7,250,null,48,200,128,null,null,1325,{"$f":"ROUND(Q245*(S$17),0)","v":1524}]
["CMS Agent",null,null,null,null,null,{"$f":"SUM(G247:G249)","v":0},null,10]
["NES-S101-CCS","Agent Control Server  (to add CTI for supervisor to control and view live agent status) *Requires NES-S101-CCR",null,null,{"$f":"IF($S$16=\"USA\",Q247,R247)","v":2360},{"$f":"+(1-E$13)*D247*E247","v":0},{"$f":"IF(D247>=1,E247*D247,0)","v":0},null,10,null,null,null,null,null,null,null,2360,{"$f":"ROUND(Q247*(S$17),0)","v":2714}]
["NES-S101-CCA","CMS Agent Seat License (provides an agent with desktop software for call control\\call preview,personal call history and database integration ) * Requires NES-S101-CCR and NES-S101-CCS",null,null,{"$f":"IF($S$16=\"USA\",Q248,R248)","v":285},0,{"$f":"IF(D248>=1,E248*D248,0)","v":0},null,10,null,null,null,null,null,null,null,285,{"$f":"ROUND(Q248*(S$17),0)","v":328}]
["NES-S101-CCA10","10 x CMS Agent Seat License Pack \n* Requires NES-S101-CCR and NES-S101-CCS",null,null,{"$f":"IF($S$16=\"USA\",Q249,R249)","v":2225},0,{"$f":"IF(D249>=1,E249*D249,0)","v":0},null,7,250,null,48,200,128,null,null,2225,{"$f":"ROUND(Q249*(S$17),0)","v":2559}]
["CMS PROFESSIONAL SERVICES",null,null,null,null,null,{"$f":"SUM(G251:G252)","v":0},null,7,250,null,48,200,128]
["NES-S106-REM","Remote installation and training \n(A PBX Engineer must be on-site at all times)",null,null,{"$f":"IF($S$16=\"USA\",Q251,R251)","v":1185},{"$f":"+(1-E$13)*D251*E251","v":0},{"$f":"IF(D251>=1,E251*D251,0)","v":0},null,10,null,null,null,null,null,null,null,1185,{"$f":"ROUND(Q251*(S$17),0)","v":1363}]
["NES-S106-PS","One Day Professional Services (to cover external data widgets requiring database integration or sites requiring custom CRM Integration)",null,null,{"$f":"IF($S$16=\"USA\",Q252,R252)","v":1800},{"$f":"+(1-E$13)*D252*E252","v":0},{"$f":"IF(D252>=1,E252*D252,0)","v":0},null,7,250,null,48,200,128,null,null,1800,{"$f":"ROUND(Q252*(S$17),0)","v":2070}]
["CMS SUPPORT",null,null,null,null,null,{"$f":"G254","v":0},null,10]
["NES-S106-PSP","Platinum Support Service (12 month support renewal. Provides phone\\email\\online ticket support with remote connection. Any supplied recording hardware swapout cover) \n12% of MSRP","No",{"$f":"IF(C254=\"Yes\",F254,0)","v":0},{"$f":"IF($S$16=\"USA\",Q255,R255)","v":1},{"$f":"+G254*E254","v":0},{"$f":"IF(C254=\"Yes\",SUM(G219:G223,G225:G226,G229:G232,G234:G235,G237:G238,G240:G242,G245,G247:G249)*J11,0)","v":0},null,10]
["Samsung Contact Center Pro (SCC Pro)",null,null,null,null,null,{"$f":"SUM(G256+G270+G280)","v":0},null,10,null,null,null,null,null,null,null,1,{"$f":"ROUND(Q255*(S$17),0)","v":1}]
["SCC PRO SOFTWARE",null,null,null,null,null,{"$f":"SUM(G257+G262+G268)","v":0},null,7,250,null,48,200,128]
["Base Software (SCC Pro Platform)",null,null,null,null,null,{"$f":"SUM(G258:G261)","v":0},null,10]
["NES-SCC-200","SCC Base Software 1 to 10 users",null,null,{"$f":"IF($S$16=\"USA\",Q258,R258)","v":3520},{"$f":"+(1-E$13)*D258*E258","v":0},{"$f":"IF(D258>=1,E258*D258,0)","v":0},null,10,null,null,null,null,null,null,null,3520,{"$f":"ROUND(Q258*(S$17),0)","v":4048}]
["NES-SCC-201","SCC Base Software 11 to 50 users",null,null,{"$f":"IF($S$16=\"USA\",Q259,R259)","v":6160},{"$f":"+(1-E$13)*D259*E259","v":0},{"$f":"IF(D259>=1,E259*D259,0)","v":0},null,7,250,null,48,200,128,null,null,6160,{"$f":"ROUND(Q259*(S$17),0)","v":7084}]
["NES-SCC-202","SCC Base Software 51 to 100 users",null,null,{"$f":"IF($S$16=\"USA\",Q260,R260)","v":8800},0,0,null,10,null,null,null,null,null,null,null,8800,{"$f":"ROUND(Q260*(S$17),0)","v":10120}]
["NES-SCC-203","SCC Base Software 101+ users",null,null,{"$f":"IF($S$16=\"USA\",Q261,R261)","v":16000},0,0,null,10,null,null,null,null,null,null,null,16000,{"$f":"ROUND(Q261*(S$17),0)","v":18400}]
["Agent License & Connectivity",null,null,null,null,null,{"$f":"SUM(G263)","v":0},null,7,250,null,48,200,128]
["NES-SCC-204","Agent screen application, profile log in, unavailable and wrap up codes, agent status and caller info.",null,null,{"$f":"IF($S$16=\"USA\",Q263,R263)","v":480},{"$f":"+(1-E$13)*D263*E263","v":0},0,null,10,null,null,null,null,null,null,null,480,{"$f":"ROUND(Q263*(S$17),0)","v":552}]
["NU-SCC-210","SCC Base IVR Software 1 Port",null,null,480,{"$f":"+(1-E$13)*D264*E264","v":0},0,null,6,200,null,44,150,98,null,null,480,552]
["NU-SCC-211","Enhanced G729 Voice Compression",null,null,46,0,0,null,7,250,null,48,200,128,null,null,46,53]
["NU-SCC-212","Duplicate Server Software & Licenses:  25% of Base software and License","No",{"$f":"IF(C266=\"Yes\",F266,0)","v":0},1,{"$f":"IF(C266=\"Yes\",(G266*E266)*0.25,0)","v":0},{"$f":"IF(C266=\"Yes\",(SUM(G258:G261,G263:G265)*S269*(1-E$13)),0)","v":0},null,7,250,null,48,200,128,null,null,1,1]
["NU-SCC-221","SCC  10 to 50 Agents upgrade",null,null,2640,0,0,null,10,null,null,null,null,null,null,null,2640,3036]
["NU-SCC-222","SCC 50 to 100 Agents upgrade",null,null,2640,0,0,null,10,null,null,null,null,null,null,null,2640,3036]
["NU-SCC-223","SCC over 100 Agents upgrade",null,null,7200,{"$f":"+(1-E$13)*D269*E269","v":0},0,null,10,null,null,null,null,null,null,null,7200,8280,0.25]
["SCC PRO PROFESSIONAL SERVICES",null,null,null,null,null,{"$f":"SUM(G271:G279)","v":0},null,10]
["NES-SCC-300","Installation per user 1-10 users",null,null,{"$f":"IF($S$16=\"USA\",Q271,R271)","v":210},{"$f":"D271*E271","v":0},0,"Yes",7,250,null,48,200,128,null,null,210,{"$f":"ROUND(Q271*(S$17),0)","v":242}]
["NES-SCC-301","Installation per user 11-50 users",null,null,115,{"$f":"D272*E272","v":0},0,"No",10,null,null,null,null,null,null,null,115,132]
["NES-SCC-302","Installation per user 51-100 users",null,null,65,0,0,null,7,250,null,48,200,128,null,null,65,75]
["NES-SCC-303","Installation per user 101+ users",null,null,50,0,0,null,10,null,null,null,null,null,null,null,50,58]
["NES-SCC-304","Additional Customized Queues",null,null,400,0,0,null,7,250,null,48,200,128,null,null,400,460]
["NES-SCC-305","Additional Professional Services Per Day",null,null,1360,0,0,null,10,null,null,null,null,null,null,null,1360,1564]
["NU-SCC-311","Additional professional services Half D",null,null,800,0,0,null,10,null,null,null,null,null,null,null,800,920]
["NU-SCC-312","IVR or Report Customization Quote Required",null,null,1,{"$f":"+D278*E278","v":0},0,null,10,null,null,null,null,null,null,null,1,1]
["NU-SCC-313","Installation of duplicate system : 50%of Installation Service","No",{"$f":"IF(C279=\"Yes\",F279,0)","v":0},1,{"$f":"IF(C279=\"yes\",(SUM(F271,F272,F273,F274)*0.5),0)","v":0},{"$f":"IF(D279>=1,F279,0)","v":0},null,10,null,null,null,null,null,null,null,1,1]
["SCC Dialer",null,null,null,null,null,{"$f":"SUM(G281:G289)","v":0},null,10]
["NU-SCCD-100","Full Dialer with Campaign Manager",null,null,{"$f":"IF($S$16=\"USA\",Q281,R281)","v":4800},{"$f":"+(1-E$13)*D281*E281","v":0},{"$f":"IF(D281>=1,E281*D281,0)","v":0},null,10,null,null,null,null,null,null,null,4800,{"$f":"ROUND(Q281*(S$17),0)","v":5520}]
["NU-SCCP-100","Preview/Progressive Client license",null,null,608,{"$f":"+(1-E$13)*D282*E282","v":0},0,null,7,250,null,48,200,128,null,null,608,699]
["NU-SCCP-200","Predictive Dialing Client license",null,null,880,{"$f":"+(1-E$13)*D283*E283","v":0},0,null,10,null,null,null,null,null,null,null,880,1012]
["NU-SCCIP-100","VoIP Channel connection",null,null,103,{"$f":"+(1-E$13)*D284*E284","v":0},0,null,null,null,null,null,null,null,null,null,103,118]
["NU-SCCS-100","Campaign Manager Live Stats & Report Lic",null,null,800,0,0,null,null,null,null,null,null,null,null,null,800,920]
["NU-SCCSI-100","SCC Dialer Pro Service 0-24 users",null,null,4000,{"$f":"+D286*E286","v":0},0,null,null,null,null,null,null,null,null,null,4000,4600]
["NU-SCCSI-200","SCC Dialer Pro Service 25-60 users",null,null,5600,{"$f":"+D287*E287","v":0},0,null,null,null,null,null,null,null,null,null,5600,6440]
["NU-SCCSI-300","SCC Dialer Pro Service 61-96 users",null,null,7200,{"$f":"+D288*E288","v":0},0,null,null,null,null,null,null,null,null,null,7200,8280]
["NU-SCCSI-400","SCC Dialer Pro Services 97+ users  Quote required",null,null,1,{"$f":"+D289*E289","v":0},0,null,null,null,null,null,null,null,null,null,1,1]
["SECR: Samsung Enterprise Call Recording",null,null,null,null,null,{"$f":"SUM(G291:G297)","v":0}]
["NU-SECR-100","SCC Call Recording Lic",null,null,{"$f":"IF($S$16=\"USA\",Q291,R291)","v":280},{"$f":"+(1-E$13)*D291*E291","v":0},{"$f":"IF(D291>=1,E291*D291,0)","v":0},null,null,null,null,null,null,null,null,null,280,{"$f":"ROUND(Q291*(S$17),0)","v":322}]
["NU-SECR-200","SCC Agent Scoring and Analytics Lic",null,null,40,0,0,null,null,null,null,null,null,null,null,null,40,46]
["NU-SECR-300","SCC Record User Screen Sync w/Recordings",null,null,40,0,0,null,null,null,null,null,null,null,null,null,40,46]
["NU-SECR-400","SCC PCI Compliance Lic",null,null,80,0,0,null,null,null,null,null,null,null,null,null,80,92]
["NU-SECRSI-30","SCC Call Recording Remote Installation <30",null,null,1440,{"$f":"+D295*E295","v":0},0,null,null,null,null,null,null,null,null,null,1440,1656]
["NU-SECRSI-100","SCC Call Recording RemoteInstallation 30-100",null,null,2080,0,0,null,null,null,null,null,null,null,null,null,2080,2392]
["NU-SECRSI-101","SCC Call Recording Remote Installation >100",null,null,2600,0,0,null,null,null,null,null,null,null,null,null,2600,2990]
["Samsung Enterprise Call Recording Support",null,null,null,null,null,{"$f":"SUM(G299:G300)","v":0}]
["NES-SCC-306","Support 08:00 - 18:00 Monday to Friday : 18%","Yes",{"$f":"IF(C299=\"Yes\",F299,0)","v":0},{"$f":"IF($S$16=\"USA\",Q299,R299)","v":1},{"$f":"IF(C299=\"Yes\", (SUM(G258:G261,G263:G269,G281:G285,G291:G294)*S$302),0)","v":0},{"$f":"IF(C299=\"Yes\",SUM(G258:G261,G263:G269,G281:G285,G291:G294)*S302,0)","v":0},null,null,null,null,null,null,null,null,null,1,{"$f":"ROUND(Q299*(S$17),0)","v":1}]
["NES-SCCI-307","Support 24/7/365 emergency support:  22%","No",{"$f":"IF(C300=\"Yes\",F300,0)","v":0},{"$f":"IF($S$16=\"USA\",Q300,R300)","v":1},{"$f":"IF(C300=\"Yes\", (SUM(G258:G261,G263:G269,G281:G285,G291:G294)*S$303),0)","v":0},{"$f":"IF(C300=\"Yes\",(SUM(G258:G261,G263:G269,G281:G285,G291:G294)*S303),0)","v":0},null,null,null,null,null,null,null,null,null,1,{"$f":"ROUND(Q300*(S$17),0)","v":1}]
["Terminal Accessories",null,null,null,null,null,{"$f":"SUM(G302:G338)","v":0}]
["A-DCSF-8B-COV","iDCS Keyset 8-Button Protective Cover (10 Pack)",null,null,{"$f":"IF($S$16=\"USA\",Q302,R302)","v":78},{"$f":"+(1-E$13)*D302*E302","v":0},{"$f":"F302","v":0},null,null,null,null,null,null,null,null,null,78,{"$f":"ROUND(Q302*(S$17),0)","v":90},0.18]
["A-DCSF-18B-COV","iDCS Keyset 18-Button Protective Cover (10 Pack)",null,null,98,{"$f":"+(1-E$13)*D303*E303","v":0},0,null,null,null,null,null,null,null,null,null,98,113,0.22]
["A-DCSF-28B-COV","iDCS Keyset 28-Button Protective Cover (10 Pack)",null,null,98,0,0,null,null,null,null,null,null,null,null,null,98,113]
["A-DCSF14BAOMCO","iDCS Keyset 14-Button AOM Protective Cover (10 Pack)",null,null,78,0,0,null,null,null,null,null,null,null,null,null,78,90]
["A-DCSF64BAOMCO","iDCS Keyset 64-Button AOM Protective Cover (10 Pack)",null,null,78,0,0,null,null,null,null,null,null,null,null,null,78,90]
["F-ADS5007S-COV","DS 7B Protective Cover (10 Pack)",null,null,98,0,0,null,null,null,null,null,null,null,null,null,98,113]
["F-ADS5014D-COV","DS 14B Protective Cover (10 Pack)",null,null,98,0,0,null,null,null,null,null,null,null,null,null,98,113]
["F-ADS5021D-COV","DS 21B Protective Cover (10 Pack)",null,null,98,0,0,null,null,null,null,null,null,null,null,null,98,113]
["F-ADS64AOM-COV","DS 64B AOM Protective Cover (10 Pack)",null,null,98,0,0,null,null,null,null,null,null,null,null,null,98,113]
["F-Ai3105DG-COV","SMT-i3105D Protective Cover (10 Pack)",null,null,98,0,0,null,null,null,null,null,null,null,null,null,98,113]
["F-Ai5230DG-COV","SMT-i5230D Protective Cover(10 Pack)",null,null,98,0,0,null,null,null,null,null,null,null,null,null,98,113]
["F-Ai5264DG-COV","SMT-i5264D Protective Cover(10 Pack)",null,null,98,0,0,null,null,null,null,null,null,null,null,null,98,113]
["F-PGB72-00364A","SMT-i3105D Desi Cover",null,null,3,0,0,null,null,null,null,null,null,null,null,null,3,3]
["F-PGA44-00056A","AC/DC Adaptor, ITP-5107S, ITP-5121D",null,null,25,0,0,null,null,null,null,null,null,null,null,null,26,30]
["KP-GA96-00760A","Handset Assembly (Dark Gray) for iDCS keysets\nIncludes: Handset Cord ",null,null,{"$f":"IF($S$16=\"USA\",Q316,R316)","v":23},0,0,null,null,null,null,null,null,null,null,null,23,26]
["KP-GA96-00804A","Handset Assembly: ITP Keysets\nIncludes: Handset Cord ",null,null,23,0,0,null,null,null,null,null,null,null,null,null,23,26]
["KP-GA39-00030A","Handset cord, ITP Keyset",null,null,6,0,0,null,null,null,null,null,null,null,null,null,6,7]
["KP-GC39-50054A","Line Cord, 3M (Dark Gray)",null,null,8,0,0,null,null,null,null,null,null,null,null,null,8,9]
["KP-GA39-00020A","iDCS Handset Cord - Standard Length (Dark Gray)",null,null,8,0,0,null,null,null,null,null,null,null,null,null,8,9]
["KP-GA72-00059A","Handset Cord Cover for Modular Connector (Dark Gray) ",null,null,23,0,0,null,null,null,null,null,null,null,null,null,23,26]
["KP-GA72-00032A","Handset Hanger For Wall Mounting (Dark Gray) ",null,null,1,0,0,null,null,null,null,null,null,null,null,null,23,26]
["KP-GA97-01887A","Base Wedge, ITP 5112L, ITP 5121D",null,null,{"$f":"IF($S$16=\"USA\",Q323,R323)","v":16},0,0,null,null,null,null,null,null,null,null,null,16,18]
["KP-GA97-01869A","Large Base Wedge for 18-Button & 28-Button Speaker Phone\n (Dark Gray)",null,null,10,0,0,null,null,null,null,null,null,null,null,null,10,12]
["KP-GA97-01870A","Small Base Wedge for 8-Button Speaker Phone & 64-Button \nConsole (Dark Gray)",null,null,10,0,0,null,null,null,null,null,null,null,null,null,10,12]
["KP-3809-001245","Ribbon Cable for 14-Button Console",null,null,3,0,0,null,null,null,null,null,null,null,null,null,3,3]
["KP-GA72-00194A","Desi Sheet Cover, DS-5021D, ITP-5121D",null,null,3,0,0,null,null,null,null,null,null,null,null,null,3,3]
["KP-GA72-00195A","Desi Sheet Cover, DS-5014D",null,null,3,0,0,null,null,null,null,null,null,null,null,null,3,3]
["KP-GA72-00197A","Desi Sheet Cover, DS-5064 AOM - Top",null,null,3,0,0,null,null,null,null,null,null,null,null,null,3,3]
["F-PGA72-00198A","Desi Sheet Cover, DS-64B AOM - Bottom",null,null,3,0,0,null,null,null,null,null,null,null,null,null,3,3]
["KP-GA72-00069A","Designation Sheet Cover for 8-Button Speaker Phone (Each) ",null,null,3,0,0,null,null,null,null,null,null,null,null,null,3,3]
["KP-GA72-00068A","Designation Sheet Bottom Cover, 8 Hole for 18-Button & 28-Button Speaker Phones (Each)",null,null,3,0,0,null,null,null,null,null,null,null,null,null,3,3]
["KP-GA72-00067A","Designation Sheet Cover for 18-Button Speaker Phone \n(Each)",null,null,3,0,0,null,null,null,null,null,null,null,null,null,3,3]
["KP-GA72-00066A","Designation Sheet Upper Cover for 28-Button Speaker Phone\n(Each)",null,null,3,0,0,null,null,null,null,null,null,null,null,null,3,3]
["KP-GA72-00070A","Designation Sheet Cover for 14-Button AOM (Each)",null,null,3,0,0,null,null,null,null,null,null,null,null,null,3,3]
["KP-GA72-00071A","Designation Sheet Cover for 64-Button Console - \nTop Button Groups (Each)",null,null,3,0,0,null,null,null,null,null,null,null,null,null,3,3]
["KP-GA72-00072A","Designation Sheet Cover for 64-Button Console - \nMiddle Button Groups (Each)",null,null,3,0,0,null,null,null,null,null,null,null,null,null,3,3]
["KP-GA72-00073A","Designation Sheet Cover for 64-Button Console - \nBottom Button Groups (Each)",null,null,3,0,0,null,null,null,null,null,null,null,null,null,3,3]
["Literature",null,null,null,null,null,{"$f":"SUM(G340+G351)","v":0}]
["SALES BROCHURES",null,null,null,null,null,{"$f":"SUM(G341:G350)","v":0}]
["L-SB-OSCOMBO","OfficeServ 7000 Family 8-Page Brochure (10 Pack) ",null,null,{"$f":"IF($S$16=\"USA\",Q341,R341)","v":23},{"$f":"+(1-E$13)*D341*E341","v":0},{"$f":"F341","v":0},null,null,null,null,null,null,null,null,null,23,{"$f":"ROUND(Q341*(S$17),0)","v":26}]
["L-SB-OS7100","OfficeServ 7100 Brochure (25 Pack) ",null,null,23,{"$f":"+(1-E$13)*D342*E342","v":0},0,null,null,null,null,null,null,null,null,null,23,26]
["L-SB-iDCS","iDCS Keyset Sales Brochure (25 Pack)",null,null,23,{"$f":"+(1-E$13)*D343*E343","v":0},0,null,null,null,null,null,null,null,null,null,23,26]
["F-L-SB-HMBASIC","OS Hospitality B&B Solutions (10 Pack)",null,null,23,{"$f":"+(1-E$13)*D344*E344","v":0},0,null,null,null,null,null,null,null,null,null,23,26]
["F-L-SB-IPUMS","OS7000 IP-UMS SVMi Messaging (10 Pack)",null,null,23,0,0,null,null,null,null,null,null,null,null,null,23,26]
["F-L-SB-MOBILE","OS7000 Samsung Mobility Solutions (10 Pack)",null,null,23,0,0,null,null,null,null,null,null,null,null,null,23,26]
["F-L-SB-OS7030","OfficeServ 7030 Sales Brochures (10 Pack)",null,null,23,0,0,null,null,null,null,null,null,null,null,null,23,26]
["F-L-SB-OS7200S","OfficeServ 7200-S Sales Brochures (10 Pack)",null,null,23,0,0,null,null,null,null,null,null,null,null,null,23,26]
["F-L-SB-SMTKST","SMT-i3105 & i5200 Series IP Telephone Family 4-Page Brochure (25 Pack)",null,null,25,0,0,null,null,null,null,null,null,null,null,null,25,29]
["F-L-SB-OSMMC","OfficeServ Meet-Me Conference 2-Page Brochure\n(25 Pack)",null,null,23,0,0,null,null,null,null,null,null,null,null,null,23,26]
["QUICK REFERENCE GUIDES",null,null,null,null,null,{"$f":"SUM(G352:G353)","v":0},null,null,null,null,null,null,null,null,null,null,0]
["L-QRG-DIGSET","Digital Keyset Quick Reference Guide (10 Pack)",null,null,{"$f":"IF($S$16=\"USA\",Q352,R352)","v":11},{"$f":"+(1-E$13)*D352*E352","v":0},0,null,null,null,null,null,null,null,null,null,11,13]
["L-QRG-SVM-E","SVM/SVMi E-Series Quick Reference Guide (10 Pack) \n(Can be used with all E-Series SVM Products)",null,null,{"$f":"IF($S$16=\"USA\",Q353,R353)","v":11},{"$f":"+(1-E$13)*D353*E353","v":0},0,null,null,null,null,null,null,null,null,null,11,13]
["ADDITIONAL ITEMS",null,null,null,null,null,{"$f":"SUM(G355:G359)","v":0}]
[null,null,null,null,null,{"$f":"+(1-E$13)*D355*E355","v":0},0]
[null,null,null,null,null,{"$f":"+(1-E$13)*D356*E356","v":0},0]
[null,null,null,null,null,{"$f":"+(1-E$13)*D357*E357","v":0},0]
[null,null,null,null,null,{"$f":"+(1-E$13)*D358*E358","v":0},0]
[null,null,null,null,null,{"$f":"+(1-E$13)*D359*E359","v":0},0]
[null,null,null,null,null,{"$f":"SUM(F18:F359)","v":0},{"$f":"F360","v":0}]

{"sheet":"Remove from Order Form","index":3,"n_rows":12,"n_cols":6,"rows_kept":12,"cut":false,"hidden":false,"merged":[[6,1,6,2],[1,1,1,2],[2,1,2,2],[3,1,3,2],[4,1,4,2],[5,1,5,2],[10,1,10,2],[11,1,11,2],[9,1,9,2],[7,1,7,2],[8,1,8,2]]}
[]
["F-B-OS7200DEMO","OS 7200 Demo Kit\nIncludes: OS7200 universal cabinet, MP20 main control processor, combo (DLI & SLI) card, 8-port CO trunk card, SD Card, OAS Card, RCM2 card, SVMi-20i card, \nDual Band WAP, DS 5021D Digital Keyset, SMT-i5243 Keyset,  2ea. SMT-W5120D Handset, 1 OfficeServ Softphone, 1 OfficeServ Operator, 1 OfficeServ Dataview, 1 OfficeServ Link, 1ea of OS Communicator UCPhone and DeskPhone Mode, \nand 1 rolling case.",null,null,{"$f":"IF($S$16=\"USA\",Q2,R2)","v":0}]
["OS71SBSIP10A","OS7100 Small Business System Package - GO Green\nIncludes: , 1 ea System Cabinet, 1 ea. MP10a Main Processor with one (1) MGI License, 1 ea OS7100SD10a Card, 1 ea. UNI Card, 2 ea 4DLM Interface Module, 1 ea. 4TRM Card, 5 ea. 28B iDCS Keysets, 1ea. SMT-i5210D 14B IP Keyset ",null,null,0]
["OS71DSIPPKG10A","OS7100 Small Business System Package - GO Green\nIncludes: 1 ea System Cabinet, 1 ea. MP10a Main Processor with one (1) MGI License, 1 ea OS7100SD10a Card, 1 ea. UNI Card, 2 ea 4DLM Interface Module, 1 ea. 4TRM Card, \n4 ea. 21B DS Digital Keysets, 1ea. SMT-i5210D 14B IP Keyset",null,null,0]
["OS7100SIPPKG","OS7100 SIP Pkg - Includes: 1 ea System Cabinet, 1 ea. MP10a Main Processor with four (4) MGI Licenses, 1 ea OS7100SD10a Card, 1 ea. UNI Card, 1 ea 4DLM Interface Module,  4 ea. 21B DS Digital Keysets, 4 ea. SIP Trunk Licenses",null,null,0]
["F-B-OS7100-01","OS7100 Demo Kit\nIncludes: 1 ea. System Cabinet, 1 ea. OS7100SD10a Card, 1 ea. MP10a card, 1 ea. UNI Card, 1 ea. 4DLM Module, 1ea.OS 4SL2U Module, 1 ea. 4TRM w/CID, 1 ea. 21B Digital Keyset, 1 ea. i5243D 19B IP Keyset, 1ea of OS Communicator UCPhone and DeskPhone Mode, 1-Link/Easyset, 1-OS Operator, 1-OS Softphone, 1-OS MGI License, 1 rolling case.",null,null,0,{"$f":"+(1-E$13)*D6*E6","v":0}]
["OS DataView\nKP-AP2XWDV/XAR","OfficeServ DataView License",null,null,0]
["OSM Phone\nKP-AP8XWCH/STD","OS Messenger Phone User SMT-i5243 only",null,null,{"$f":"IF($S$16=\"USA\",Q8,R8)","v":0},{"$f":"+(1-E$13)*D8*E8","v":0}]
["OSM PC\nKP-AP8XWCP/STD","OS Messenger PC Collaboration User \n(Requires Link V3)",null,null,{"$f":"IF($S$16=\"USA\",Q9,R9)","v":0},{"$f":"+(1-E$13)*D9*E9","v":0}]
["F-B-OS7400-02","OS 7400 Large IP Solutions Kit\nIncludes: 1ea - CRM Module, 1ea. LP40 processor, \n1ea OS 7400 Universal cabinet, 1 ea OS MP40/SD  card, \n2 ea -OAS Card, 1ea. SVMi-20i card, 30ea. SMT-i3105D \n IP Keysets, 50ea - SMT-i5210D- IP Keysets",null,null,{"$f":"IF($S$16=\"USA\",Q10,R10)","v":0}]
["L-SB-OSCALL","OfficeServ Call Sales Brochure (25 pack)",null,null,{"$f":"IF($S$16=\"USA\",Q11,R11)","v":0},{"$f":"+(1-E$13)*D11*E11","v":0}]
["L-SB-OSWLAN","OfficeServ Wireless Sales Brochure (25 Pack)",null,null,{"$f":"IF($S$16=\"USA\",Q12,R12)","v":0},{"$f":"+(1-E$13)*D12*E12","v":0}]